bitfinex-derivatives/quotes_SOLF0:USTF0_20241217
["timestamp","ask_amount","ask_price","bid_price","bid_amount"]
[1734467002423,8.23331,226.59,226.51,2.28]
[1734467002827,2.2069,226.57,226.51,2.28]
[1734467003026,8.23331,226.59,226.51,2.28]
[1734467003223,8.23331,226.59,226.47,18.28294471]
[1734467003429,2.2073,226.53,226.48,6.07415845]
[1734467003727,8.23331,226.59,226.48,2.28]
[1734467004632,8.23331,226.56,226.48,2.28]
[1734467004823,2.2075,226.51,226.48,4.4877]
[1734467005022,8.23331,226.56,226.45,1.4795]
[1734467005227,8.23331,226.53,226.44,2.28]
[1734467005532,8.23331,226.53,226.44,4.4881]
[1734467006030,2.2078,226.49,226.44,4.4881]
[1734467006328,8.23331,226.53,226.44,4.4881]
[1734467006527,2.2078,226.48,226.44,4.4881]
[1734467007433,2.2078,226.48,226.45,2.208]
[1734467007633,2.2077,226.49,226.45,2.208]
[1734467009029,8.23331,226.56,226.44,2.28]
[1734467009334,15.78177081,226.59,226.44,10.51331]
[1734467009726,2.2071,226.56,226.52,2.2073]
[1734467009929,15.78177081,226.59,226.52,2.2073]
[1734467011229,13.50177081,226.59,226.49,2.28]
[1734467011932,2.2069,226.57,226.53,2.2072]
[1734467012129,13.50177081,226.59,226.53,2.2072]
[1734467012529,2.207,226.57,226.53,2.2072]
[1734467013133,2.207,226.56,226.53,2.2072]
[1734467013632,9.74891,226.62,226.56,2.207]
[1734467013832,2.2067,226.59,226.56,2.207]
[1734467014625,2.2068,226.58,226.53,2.2072]
[1734467014829,5.39218024,226.61,226.5,3.0105]
[1734467015024,8.23331,226.59,226.5,3.7437]
[1734467015229,8.23331,226.56,226.5,4.4875]
[1734467015629,2.2072,226.54,226.5,4.4875]
[1734467017136,2.2071,226.55,226.51,2.2075]
[1734467018034,8.23331,226.56,226.5,2.28]
[1734467018234,2.2073,226.53,226.5,2.28]
[1734467018734,2.2073,226.53,226.49,2.2076]
[1734467018933,2.2073,226.53,226.5,2.2075]
[1734467019933,2.2073,226.54,226.5,2.2076]
[1734467020332,8.23331,226.56,226.5,2.2076]
[1734467021434,2.2073,226.53,226.5,2.2076]
[1734467022330,2.2073,226.53,226.48,2.28]
[1734467022331,2.28,226.6,226.52,2.2074]
[1734467022534,2.28,226.6,226.45,18.28294471]
[1734467022535,8.23331,226.54,226.45,18.28294471]
[1734467022837,8.23331,226.54,226.46,2.28]
[1734467023135,2.2077,226.5,226.46,4.4879]
[1734467023330,8.23331,226.51,226.4,18.28294471]
[1734467023633,2.9558,226.59,226.4,2.26]
[1734467023634,8.23331,226.48,226.4,2.26]
[1734467024428,8.23331,226.48,226.41,2.2084]
[1734467025134,2.2081,226.45,226.41,2.2084]
[1734467025631,2.2081,226.45,226.42,2.2083]
[1734467026338,2.2082,226.44,226.38,2.26]
[1734467026636,2.2082,226.44,226.39,3.79811178]
[1734467026930,2.2082,226.44,226.38,2.26]
[1734467027433,2.9558,226.59,226.38,10.49331]
[1734467027434,10.49331,226.54,226.38,10.49331]
[1734467027632,8.23331,226.54,226.42,18.28294471]
[1734467027833,8.23331,226.54,226.43,6.05765997]
[1734467028035,2.2075,226.51,226.46,2.2079]
[1734467028239,2.2075,226.51,226.43,2.26]
[1734467029431,2.2075,226.51,226.47,2.2078]
[1734467029828,2.2075,226.51,226.43,2.26]
[1734467030039,8.23331,226.54,226.48,2.2077]
[1734467030040,2.2074,226.52,226.48,2.2077]
[1734467030534,2.207,226.56,226.48,2.26]
[1734467030735,10.49331,226.6,226.49,1.5112]
[1734467030736,8.23331,226.6,226.49,1.5112]
[1734467031140,2.2067,226.59,226.55,2.2071]
[1734467031634,2.2068,226.58,226.53,2.2072]
[1734467032539,2.2068,226.58,226.54,2.2071]
[1734467032938,8.23331,226.6,226.49,1.5112]
[1734467033132,10.43991,226.6,226.56,2.207]
[1734467034036,2.2066,226.6,226.56,2.207]
[1734467034541,5.41484098,226.63,226.57,2.2069]
[1734467034739,47.83187175,226.66,226.53,10.49331]
[1734467035137,50.03797175,226.66,226.61,2.2065]
[1734467036231,47.83187175,226.66,226.61,2.2065]
[1734467036431,2.2061,226.65,226.61,2.2065]
[1734467037838,47.83187175,226.66,226.58,2.26]
[1734467038140,13.42172898,226.69,226.58,2.26]
[1734467038336,8.23331,226.72,226.59,9.65211]
[1734467038633,2.2057,226.7,226.65,2.2061]
[1734467039737,8.23331,226.66,226.6,2.2065]
[1734467040041,8.23331,226.67,226.59,1.4188]
[1734467040437,2.2061,226.66,226.61,2.2064]
[1734467040743,2.26,226.69,226.57,2.26]
[1734467040744,8.23331,226.64,226.57,2.26]
[1734467040941,2.2066,226.61,226.57,2.26]
[1734467041143,8.23331,226.61,226.57,2.26]
[1734467041343,8.23331,226.61,226.52,3.6788]
[1734467041534,8.23331,226.58,226.48,19.77444471]
[1734467041837,0.2776,226.7,226.49,2.26]
[1734467041838,2.9427,226.63,226.49,2.26]
[1734467042038,2.2065,226.61,226.51,8.23331]
[1734467042340,8.23331,226.64,226.51,8.23331]
[1734467043044,8.23331,226.67,226.51,8.23331]
[1734467043242,8.23331,226.67,226.54,8.23331]
[1734467043434,2.26,226.69,226.55,2.26]
[1734467043632,2.2059,226.67,226.55,3.7027]
[1734467044541,2.2059,226.67,226.62,2.2063]
[1734467047940,2.2053,226.73,226.68,2.2057]
[1734467048142,12.03721,226.76,226.65,2.26]
[1734467048439,2.2058,226.68,226.65,2.26]
[1734467048941,2.2056,226.71,226.65,2.26]
[1734467049143,8.23331,226.7,226.61,2.26]
[1734467050450,4.4071,226.92,226.63,8.23331]
[1734467050645,5.30573792,226.84,226.7,8.23331]
[1734467050844,8.23331,226.88,226.73,8.23331]
[1734467051145,9.64681,226.91,226.76,8.23331]
[1734467051446,11.90681,226.91,226.76,8.23331]
[1734467051844,2.2041,226.86,226.79,2.2047]
[1734467052045,8.23331,226.85,226.74,2.26]
[1734467052447,10.49331,226.85,226.74,2.26]
[1734467052747,2.2044,226.83,226.76,2.205]
[1734467053140,2.26,226.85,226.74,2.26]
[1734467053440,15.88484644,226.88,226.76,8.23331]
[1734467054153,2.2042,226.85,226.79,2.2047]
[1734467054639,10.49331,226.84,226.61,18.28294471]
[1734467054839,8.23331,226.77,226.64,8.23331]
[1734467055143,2.26,226.79,226.64,8.23331]
[1734467055339,2.2049,226.77,226.64,8.23331]
[1734467055743,8.23331,226.8,226.64,8.23331]
[1734467055949,2.2051,226.76,226.7,2.2056]
[1734467059552,10.49331,226.8,226.66,5.28626896]
[1734467059748,8.23331,226.77,226.66,4.4659]
[1734467059948,8.23331,226.77,226.63,2.26]
[1734467060150,2.2059,226.68,226.62,1.4783]
[1734467060450,2.26,226.73,226.62,1.4783]
[1734467060953,2.206,226.67,226.62,1.4783]
[1734467065055,2.26,226.73,226.62,1.4783]
[1734467065557,2.2059,226.67,226.62,3.6847]
[1734467066151,2.2059,226.67,226.62,1.4783]
[1734467068860,2.206,226.66,226.62,1.4783]
[1734467070858,7.62335938,226.73,226.62,1.4783]
[1734467070859,2.2062,226.65,226.62,1.4783]
[1734467071060,8.23331,226.71,226.61,2.26]
[1734467071458,2.2058,226.68,226.61,2.26]
[1734467071764,8.23331,226.71,226.61,2.26]
[1734467073064,2.2062,226.65,226.6,2.2066]
[1734467073472,8.23331,226.71,226.6,2.2066]
[1734467074772,2.2063,226.64,226.6,2.2066]
[1734467077573,2.2065,226.61,226.58,2.2067]
[1734467077777,2.2065,226.61,226.56,2.26]
[1734467077978,8.23331,226.65,226.52,8.23331]
[1734467078169,8.23331,226.62,226.51,4.3717]
[1734467078375,3.3241,226.7,226.52,8.23331]
[1734467078576,5.36335938,226.73,226.61,8.23331]
[1734467078879,5.36335938,226.73,226.61,10.49331]
[1734467079180,8.23331,226.72,226.61,2.26]
[1734467079677,8.23331,226.69,226.56,2.26]
[1734467079978,2.26,226.68,226.56,2.26]
[1734467080179,8.23331,226.66,226.52,8.23331]
[1734467080370,8.23331,226.63,226.53,2.26]
[1734467080574,2.26,226.62,226.53,2.26]
[1734467080776,2.2069,226.58,226.53,4.4672]
[1734467081073,8.23331,226.68,226.53,2.26]
[1734467081276,2.2063,226.64,226.6,2.2065]
[1734467081472,9.73471,226.71,226.58,10.49331]
[1734467081674,8.23331,226.71,226.59,2.26]
[1734467081876,2.2057,226.69,226.59,2.26]
[1734467082179,2.2057,226.69,226.6,1.4595]
[1734467082579,2.2057,226.69,226.6,2.9796]
[1734467085177,7.62335938,226.73,226.6,2.9796]
[1734467085377,2.2058,226.68,226.64,2.2061]
[1734467095889,2.2058,226.68,226.65,2.2061]
[1734467100293,7.62335938,226.73,226.59,18.28294471]
[1734467100592,5.26605365,226.66,226.6,5.26605365]
[1734467101285,5.26605365,226.66,226.58,5.26605365]
[1734467101484,5.26605365,226.64,226.58,7.52605365]
[1734467101793,0.2749,226.79,226.62,5.26605365]
[1734467101794,5.26605365,226.72,226.62,5.26605365]
[1734467101993,5.26605365,226.72,226.66,5.26605365]
[1734467102492,5.26605365,226.7,226.64,5.26605365]
[1734467103084,2.2058,226.69,226.64,7.47225365]
[1734467103686,5.26605365,226.7,226.64,2.2062]
[1734467103889,5.26605365,226.7,226.63,2.26]
[1734467104089,5.26605365,226.7,226.64,2.2062]
[1734467104292,5.26605365,226.7,226.64,7.47225365]
[1734467104494,2.2057,226.69,226.65,2.2061]
[1734467105498,5.26605365,226.7,226.64,7.47225365]
[1734467106592,2.2058,226.68,226.64,7.47225365]
[1734467107095,2.2058,226.68,226.65,2.2061]
[1734467107294,2.2057,226.69,226.64,5.26605365]
[1734467107796,2.2057,226.69,226.65,2.2061]
[1734467108189,5.31178807,226.74,226.65,2.2061]
[1734467108398,2.2056,226.71,226.67,2.2059]
[1734467111312,2.2057,226.7,226.67,2.2059]
[1734467115504,5.31178807,226.74,226.63,20.54294471]
[1734467115505,4.4075,226.9,226.69,5.26605365]
[1734467115703,5.26605365,226.83,226.76,5.26605365]
[1734467116397,2.2046,226.81,226.77,2.2049]
[1734467116597,5.26605365,226.83,226.76,5.26605365]
[1734467117203,5.26605365,226.79,226.7,18.28294471]
[1734467117401,5.26605365,226.79,226.71,2.26]
[1734467117702,5.26605365,226.79,226.72,5.26605365]
[1734467118207,2.205,226.77,226.73,2.2052]
[1734467118506,5.26605365,226.83,226.76,5.26605365]
[1734467118904,2.2046,226.81,226.76,7.47105365]
[1734467119511,2.2047,226.8,226.76,7.47105365]
[1734467120608,2.9058,226.89,226.78,5.26605365]
[1734467120801,4.4061,226.97,226.82,5.26605365]
[1734467121001,5.26605365,226.91,226.84,5.26605365]
[1734467121309,1.7375,226.99,226.86,5.26605365]
[1734467121310,2.26,226.96,226.86,5.26605365]
[1734467121610,5.26605365,226.94,226.86,5.26605365]
[1734467121907,2.2035,226.93,226.87,2.2039]
[1734467122702,2.2035,226.92,226.87,2.2039]
[1734467122899,5.26605365,226.94,226.87,2.2039]
[1734467124113,5.31139731,226.95,226.86,2.2041]
[1734467125010,5.31139731,226.95,226.87,2.204]
[1734467125209,2.2036,226.92,226.87,2.204]
[1734467126208,2.2036,226.92,226.86,2.2041]
[1734467126713,2.2036,226.92,226.84,2.26]
[1734467127511,2.2036,226.92,226.87,2.204]
[1734467130804,2.2032,226.96,226.91,2.2036]
[1734467131213,13.43264493,227.02,226.89,2.26]
[1734467131514,8.21199326,227.02,226.9,1.4278]
[1734467132514,2.203,226.98,226.9,1.4278]
[1734467133413,2.203,226.98,226.93,2.2033]
[1734467133915,2.203,226.98,226.94,2.26]
[1734467134417,2.2028,226.99,226.95,2.2032]
[1734467134615,0.15458,227.04,226.95,2.2032]
[1734467134819,0.15458,227.04,226.94,2.26]
[1734467135013,2.203,226.98,226.94,4.4633]
[1734467136216,2.203,226.97,226.94,2.26]
[1734467139320,2.2029,226.98,226.94,4.4633]
[1734467140320,0.15458,227.04,226.94,2.26]
[1734467140515,2.2028,227.0,226.95,2.2031]
[1734467141024,2.2028,227.0,226.96,2.2031]
[1734467141519,2.2029,226.98,226.94,4.4633]
[1734467143018,2.2028,227.0,226.95,2.2031]
[1734467143217,2.2028,227.0,226.94,2.26]
[1734467143420,0.15458,227.04,226.94,10.47199326]
[1734467143619,2.2026,227.02,226.97,2.2029]
[1734467144630,2.2026,227.02,226.94,10.47199326]
[1734467145720,0.15458,227.04,226.94,10.47199326]
[1734467145922,5.25186311,227.01,226.94,7.51186311]
[1734467146227,2.2028,226.99,226.95,2.2031]
[1734467146930,2.2028,226.99,226.96,2.203]
[1734467147134,2.2027,227.0,226.96,2.203]
[1734467150136,2.2028,226.99,226.96,2.203]
[1734467151633,2.2028,226.99,226.96,7.45486311]
[1734467154137,2.2028,226.99,226.96,5.25186311]
[1734467155941,5.26190179,227.07,226.94,2.2033]
[1734467155942,2.203,226.97,226.94,2.2033]
[1734467156241,2.203,226.97,226.96,2.26]
[1734467157944,5.26190179,227.07,226.96,2.26]
[1734467158243,5.25186311,227.05,226.98,5.25186311]
[1734467158438,2.2028,227.0,226.96,9.71496311]
[1734467159038,5.25186311,227.03,226.96,9.71496311]
[1734467159343,2.2028,226.99,226.96,9.71496311]
[1734467160342,5.26190179,227.07,226.96,9.71496311]
[1734467160643,40.57143667,227.08,227.0,5.25186311]
[1734467160839,40.57143667,227.08,227.01,2.26]
[1734467161043,2.2023,227.04,227.01,2.26]
[1734467161240,35.31957356,227.08,226.98,5.25186311]
[1734467161434,5.25186311,227.06,226.99,2.26]
[1734467161639,2.2023,227.04,226.99,4.4628]
[1734467161944,5.25186311,227.06,226.99,4.4628]
[1734467162343,5.25186311,227.06,226.98,5.25186311]
[1734467162542,5.25186311,227.02,226.93,5.41006476]
[1734467162739,5.25186311,227.02,226.95,5.25186311]
[1734467163050,2.2027,227.0,226.95,7.45496311]
[1734467163340,2.2027,227.0,226.95,5.25186311]
[1734467164547,2.2027,227.0,226.97,5.25186311]
[1734467166449,2.2027,227.0,226.98,2.26]
[1734467169544,5.25186311,227.04,226.98,2.26]
[1734467169745,2.2028,226.99,226.98,2.26]
[1734467173443,5.25186311,227.0,226.93,5.41006476]
[1734467173650,5.25186311,227.0,226.94,2.26]
[1734467174149,14.05015112,227.07,226.94,2.26]
[1734467174150,5.25186311,226.98,226.94,2.26]
[1734467174343,2.203,226.97,226.95,2.26]
[1734467174739,5.25186311,226.96,226.87,18.37897327]
[1734467174943,2.26,226.99,226.85,5.25186311]
[1734467175142,5.25186311,226.96,226.89,5.25186311]
[1734467175350,2.2033,226.94,226.9,2.2036]
[1734467175649,2.2033,226.94,226.89,7.51186311]
[1734467175844,2.2034,226.93,226.89,9.71566311]
[1734467176146,5.25186311,226.95,226.89,7.51186311]
[1734467176549,2.2034,226.93,226.89,9.71566311]
[1734467179160,2.2034,226.93,226.91,5.25186311]
[1734467180453,2.2034,226.93,226.89,9.71566311]
[1734467180648,5.25186311,226.96,226.89,7.51186311]
[1734467181458,2.2034,226.94,226.91,5.25186311]
[1734467182251,5.25186311,226.98,226.89,9.71566311]
[1734467182252,2.2034,226.93,226.89,9.71566311]
[1734467182556,5.25186311,226.98,226.89,7.51186311]
[1734467183159,5.25186311,226.98,226.89,9.71556311]
[1734467183561,5.25186311,226.98,226.89,15.12735009]
[1734467184059,2.2034,226.93,226.89,15.12735009]
[1734467184753,2.2033,226.95,226.91,7.45546311]
[1734467184959,13.26,227.21,226.89,7.67178698]
[1734467184960,5.22760098,227.05,226.93,5.25186311]
[1734467185160,5.25186311,227.04,226.97,5.25186311]
[1734467185460,5.25186311,227.06,226.99,5.25186311]
[1734467185952,5.25186311,227.06,226.99,7.45466311]
[1734467186161,5.25186311,227.06,226.99,5.25186311]
[1734467186359,5.25186311,227.04,226.98,2.26]
[1734467186855,5.25186311,227.02,226.98,2.26]
[1734467187962,2.2028,226.99,226.98,2.26]
[1734467189154,5.25186311,227.02,226.95,5.25186311]
[1734467189453,5.25186311,226.98,226.93,2.26]
[1734467190658,2.2031,226.96,226.93,2.26]
[1734467190862,5.25186311,226.98,226.93,2.26]
[1734467191055,5.25186311,226.96,226.85,18.37897327]
[1734467191259,5.25186311,226.94,226.86,6.055004]
[1734467191459,5.25186311,226.94,226.87,4.464]
[1734467191661,2.2035,226.92,226.87,2.26]
[1734467191859,2.2035,226.92,226.86,5.25186311]
[1734467192060,2.2035,226.92,226.89,2.2037]
[1734467192259,2.2034,226.94,226.88,5.25186311]
[1734467192456,2.9553,226.99,226.9,5.25186311]
[1734467192763,5.25186311,226.98,226.92,5.25186311]
[1734467192954,2.2032,226.96,226.92,9.71526311]
[1734467193273,5.25186311,226.98,226.92,2.26]
[1734467194167,2.2033,226.95,226.92,2.26]
[1734467194362,2.26,227.03,226.92,7.51186311]
[1734467194566,5.25186311,227.0,226.92,7.51186311]
[1734467195365,5.25186311,227.0,226.93,2.2034]
[1734467195758,2.2031,226.96,226.92,9.71536311]
[1734467197067,2.2031,226.96,226.93,2.2033]
[1734467198361,2.26,227.03,226.92,7.51186311]
[1734467198569,5.25186311,227.03,226.96,5.25186311]
[1734467199365,5.25186311,227.03,226.96,7.45486311]
[1734467199971,2.2028,227.0,226.96,7.45486311]
[1734467200473,5.25186311,227.03,226.96,7.45486311]
[1734467201572,2.2028,226.99,226.96,7.45486311]
[1734467201868,5.25186311,227.03,226.94,7.45506311]
[1734467202068,5.25186311,226.99,226.92,1.4461]
[1734467202269,5.25186311,226.99,226.92,3.7061]
[1734467202671,5.25186311,226.99,226.92,5.9095]
[1734467203273,2.2032,226.96,226.92,5.9095]
[1734467203473,5.25186311,226.99,226.92,5.9095]
[1734467204076,2.2032,226.96,226.92,5.9095]
[1734467205579,2.2032,226.96,226.93,2.2034]
[1734467212479,2.2032,226.96,226.93,7.45526311]
[1734467216377,5.25186311,226.97,226.92,2.26]
[1734467216882,2.2031,226.96,226.92,2.26]
[1734467217185,5.25186311,226.99,226.93,5.25186311]
[1734467218276,2.2031,226.96,226.93,2.2034]
[1734467218474,2.2031,226.96,226.93,7.45526311]
[1734467221181,5.25186311,226.97,226.92,2.26]
[1734467222485,2.2033,226.94,226.92,2.26]
[1734467222685,2.2033,226.94,226.91,2.2036]
[1734467223282,2.2033,226.94,226.91,7.45546311]
[1734467224585,5.25186311,226.97,226.91,5.25186311]
[1734467224785,2.203,226.97,226.93,2.2034]
[1734467225782,2.2031,226.96,226.93,2.2034]
[1734467234080,2.2029,226.99,226.95,2.2032]
[1734467234282,5.25186311,227.02,226.95,4.4432]
[1734467234487,5.25186311,227.02,226.95,9.69506311]
[1734467234685,2.2029,226.99,226.96,2.2031]
[1734467235994,2.2029,226.98,226.95,9.69506311]
[1734467236187,2.2029,226.98,226.95,4.4432]
[1734467236383,5.25186311,227.0,226.95,2.24]
[1734467237389,2.2031,226.97,226.95,2.24]
[1734467241703,5.25186311,226.99,226.92,1.4236]
[1734467241904,5.25186311,226.99,226.92,2.24]
[1734467242104,2.203,226.97,226.92,2.24]
[1734467242304,5.25186311,226.99,226.92,2.24]
[1734467242700,2.2033,226.95,226.92,2.24]
[1734467243208,2.2033,226.95,226.92,9.69536311]
[1734467248400,25.70006481,227.05,226.92,9.69536311]
[1734467248401,2.2031,226.96,226.92,9.69536311]
[1734467250001,2.2031,226.96,226.92,7.49186311]
[1734467250206,2.2031,226.96,226.93,2.2034]
[1734467251207,11.16184433,227.03,226.94,5.25186311]
[1734467251208,5.25186311,227.03,226.94,5.25186311]
[1734467252409,2.2027,227.0,226.96,2.2031]
[1734467253511,5.25186311,227.03,226.97,2.24]
[1734467253709,1.62872,227.07,226.97,2.24]
[1734467253710,5.43988311,227.07,226.98,5.25186311]
[1734467254012,5.43988311,227.07,227.0,5.25186311]
[1734467254213,2.2022,227.05,227.01,2.2026]
[1734467254707,0.18802,227.07,227.0,5.25186311]
[1734467255507,0.18802,227.07,227.06,5.25186311]
[1734467255714,5.25186311,227.14,227.06,7.49186311]
[1734467255914,2.2014,227.14,227.09,2.2018]
[1734467256115,11.15814505,227.15,227.1,5.25186311]
[1734467256408,11.15814505,227.16,227.11,2.24]
[1734467256609,2.2012,227.16,227.11,4.4416]
[1734467257007,37.46361137,227.17,227.12,5.25186311]
[1734467257207,5.28002115,227.21,227.12,5.25186311]
[1734467257407,5.25186311,227.17,227.11,2.24]
[1734467258212,3.7608,227.22,227.11,2.24]
[1734467258411,5.25186311,227.16,227.11,2.24]
[1734467259412,2.2013,227.15,227.11,2.24]
[1734467260813,2.2013,227.14,227.11,2.24]
[1734467266104,5.25186311,227.16,227.11,2.24]
[1734467266304,2.2013,227.15,227.11,2.24]
[1734467266712,2.2014,227.14,227.11,2.24]
[1734467268916,5.25186311,227.16,226.91,160.34833944]
[1734467269116,2.2016,227.12,227.07,2.2019]
[1734467269317,12.61680356,227.22,227.08,2.24]
[1734467269518,2.2016,227.12,227.08,7.52879879]
[1734467269819,5.25186311,227.14,227.08,14.9825619]
[1734467270020,2.2014,227.14,227.08,12.7806619]
[1734467270218,2.2014,227.14,227.09,2.2018]
[1734467271620,2.2015,227.13,227.09,2.2018]
[1734467273121,2.2015,227.13,227.1,5.25186311]
[1734467274012,2.2013,227.15,227.12,5.25186311]
[1734467274216,5.25186311,227.18,227.12,7.49186311]
[1734467274519,5.25186311,227.18,227.12,2.24]
[1734467274720,2.2014,227.14,227.12,2.24]
[1734467275816,5.25186311,227.18,227.12,2.24]
[1734467276017,2.2014,227.13,227.12,2.24]
[1734467276213,2.2014,227.13,227.08,7.43041854]
[1734467276214,5.25186311,227.14,227.09,2.24]
[1734467277015,5.26605928,227.21,227.09,2.24]
[1734467277223,5.25186311,227.16,227.09,7.49186311]
[1734467277521,5.25186311,227.14,227.09,2.24]
[1734467278120,2.2016,227.12,227.09,2.24]
[1734467279214,2.2016,227.11,227.09,2.24]
[1734467279614,5.25186311,227.16,227.09,2.24]
[1734467279814,5.25186311,227.16,226.97,3.0268]
[1734467279815,2.2017,227.1,227.07,2.24]
[1734467280723,2.2017,227.1,227.08,5.25186311]
[1734467281224,2.2017,227.11,227.08,5.25186311]
[1734467282018,1.5208,227.22,227.1,5.25186311]
[1734467282221,5.25186311,227.21,227.14,5.25186311]
[1734467282521,5.25186311,227.21,227.14,7.49186311]
[1734467283226,2.2012,227.15,227.14,2.24]
[1734467283627,1.5208,227.22,227.14,7.49186311]
[1734467283827,2.2011,227.17,227.14,7.49186311]
[1734467284523,2.2011,227.17,227.14,2.24]
[1734467286037,2.201,227.19,227.16,5.25186311]
[1734467287523,2.201,227.18,227.16,5.25186311]
[1734467287730,2.201,227.18,227.14,9.69316311]
[1734467290130,5.25186311,227.22,227.14,9.69316311]
[1734467291030,2.201,227.18,227.14,9.69316311]
[1734467294033,2.2011,227.17,227.14,9.69316311]
[1734467295534,2.2012,227.16,227.14,2.24]
[1734467295730,11.12117425,227.23,227.15,5.25186311]
[1734467295930,16.37303736,227.22,227.15,5.25186311]
[1734467296233,2.2011,227.17,227.15,5.25186311]
[1734467297028,2.2012,227.16,227.15,5.25186311]
[1734467299036,2.2012,227.15,227.14,2.24]
[1734467299231,2.2012,227.15,227.09,1.515]
[1734467299232,5.25186311,227.18,227.13,2.24]
[1734467299826,2.2013,227.14,227.13,2.24]
[1734467305132,2.2017,227.11,227.08,2.8628]
[1734467305338,2.2017,227.11,227.09,2.24]
[1734467305632,2.24,227.22,227.1,5.25186311]
[1734467305633,5.25186311,227.19,227.1,5.25186311]
[1734467305835,30.95034457,227.19,227.13,5.25186311]
[1734467306140,11.1632802,227.18,227.13,5.25186311]
[1734467306333,2.2012,227.16,227.14,2.24]
[1734467310040,25.70303832,227.21,227.14,2.24]
[1734467310238,18.76859218,227.2,227.15,5.25186311]
[1734467310442,5.25186311,227.22,227.15,5.25186311]
[1734467311542,23.35291439,227.22,227.15,5.25186311]
[1734467311744,5.25186311,227.22,227.15,5.25186311]
[1734467312544,5.25186311,227.22,227.15,7.45306311]
[1734467312545,2.2009,227.19,227.15,7.45306311]
[1734467316738,2.201,227.18,227.14,2.24]
[1734467316944,2.201,227.18,227.14,4.4413]
[1734467319345,2.201,227.18,227.14,2.24]
[1734467319649,2.201,227.18,227.15,2.2012]
[1734467322145,2.201,227.18,227.15,7.45306311]
[1734467322942,5.25186311,227.22,227.14,2.24]
[1734467323147,13.26,227.37,227.14,2.24]
[1734467323148,2.2012,227.16,227.14,2.24]
[1734467324247,31.01752855,227.2,227.14,2.24]
[1734467324248,2.2012,227.15,227.14,2.24]
[1734467324449,2.2012,227.15,227.12,7.47186311]
[1734467324942,2.2012,227.15,227.08,2.8628]
[1734467324943,31.01220226,227.16,227.08,6.68866311]
[1734467325149,25.76033915,227.15,227.09,2.22]
[1734467325441,25.76033915,227.15,227.08,6.68866311]
[1734467325442,16.44218275,227.14,227.08,5.8587]
[1734467325647,2.2017,227.11,227.08,5.8587]
[1734467325949,2.2017,227.11,227.08,7.45376311]
[1734467326943,9.14944147,227.17,227.1,5.25186311]
[1734467327145,5.25186311,227.23,227.16,5.25186311]
[1734467327344,25.75827492,227.23,227.16,5.25186311]
[1734467327543,31.01013803,227.22,227.16,5.25186311]
[1734467327741,25.75827492,227.21,227.16,5.25186311]
[1734467327947,5.25186311,227.22,227.16,5.25186311]
[1734467328349,31.00864505,227.22,227.16,5.25186311]
[1734467328550,2.201,227.18,227.16,5.25186311]
[1734467333250,2.201,227.18,227.15,4.4212]
[1734467334357,5.25186311,227.2,227.07,5.19248111]
[1734467334551,2.2013,227.15,227.11,5.25186311]
[1734467334751,5.25186311,227.18,227.11,5.25186311]
[1734467335055,2.2013,227.15,227.11,7.45346311]
[1734467336848,2.2014,227.14,227.07,5.19248111]
[1734467337046,5.25186311,227.16,227.09,5.25186311]
[1734467338453,5.25186311,227.16,227.09,7.45366311]
[1734467338752,25.74970513,227.2,227.09,5.25186311]
[1734467338958,2.2013,227.15,227.11,5.25186311]
[1734467339159,5.25186311,227.15,227.02,4.4076]
[1734467339456,5.25186311,227.09,227.02,2.9908]
[1734467339856,2.202,227.07,227.03,2.2024]
[1734467340358,2.202,227.07,227.03,7.45426311]
[1734467343359,2.2023,227.05,227.01,7.45446311]
[1734467343555,2.2023,227.05,226.96,1.413]
[1734467343556,5.25186311,227.07,227.0,5.25186311]
[1734467343761,5.25186311,227.03,226.94,5.26186802]